fUSD/lending_fUSD_20250104
["ID","MTS","AMOUNT","RATE_DAILY","PERIOD"]
[347631484,1735986641753,-500.0,0.00010253,2]
[347631485,1735986641762,-701.79,0.00010253,2]
[347631486,1735986641771,-507.5,0.00010253,2]
[347631487,1735986641780,-500.0,0.00010253,2]
[347631488,1735986641790,-500.0,0.00010253,2]
[347631489,1735986641800,-540.19,0.00010253,2]
[347631490,1735986641809,-500.0,0.00010253,2]
[347631491,1735986641819,-500.0,0.00010253,2]
[347631492,1735986641828,-500.0,0.00010253,2]
[347631493,1735986641838,-372.67760399,0.00010253,2]
[347631494,1735986641847,-500.0,0.00010253,2]
[347631495,1735986641856,-500.0,0.00010253,2]
[347631496,1735986641865,-500.0,0.00010253,2]
[347631497,1735986641874,-591.21,0.00010253,2]
[347631498,1735986641884,-500.0,0.00010253,2]
[347631499,1735986641894,-500.0,0.00010253,2]
[347631500,1735986641903,-500.0,0.00010253,2]
[347631501,1735986641913,-500.0,0.00010253,2]
[347631502,1735986641923,-857.36,0.00010253,2]
[347631503,1735986641932,-689.37,0.00010253,2]
[347631504,1735986641941,-505.94721401,0.00010253,2]
[347631505,1735986641950,-500.0,0.00010253,2]
[347631506,1735986641959,-500.0,0.00010253,2]
[347631507,1735986641968,-500.0,0.00010253,2]
[347631508,1735986641978,-500.0,0.00010253,2]
[347631509,1735986641987,-405.56,0.00010253,2]
[347631510,1735986641996,-500.0,0.00010253,2]
[347631511,1735986642005,-500.0,0.00010253,2]
[347631512,1735986642015,-605.2,0.00010253,2]
[347631513,1735986642023,-500.0,0.00010253,2]
[347631514,1735986642033,-833.96,0.00010253,2]
[347631515,1735986642042,-150.0,0.00010255,2]
[347631516,1735986642051,-500.0,0.00010269,2]
[347631517,1735986642061,-500.0,0.0001027,2]
[347631518,1735986642070,-500.0,0.0001027,2]
[347631519,1735986642079,-500.0,0.0001027,2]
[347631520,1735986642089,-500.0,0.0001027,2]
[347631521,1735986642098,-500.0,0.0001027,2]
[347631522,1735986642107,-500.0,0.0001027,2]
[347631523,1735986642116,-500.0,0.00010273,2]
[347631524,1735986642125,-150.0,0.00010284,2]
[347631525,1735986642134,-150.0,0.00010308,2]
[347631526,1735986642144,-150.0,0.00010308,2]
[347631527,1735986642153,-1500.0,0.00010329,2]
[347631528,1735986642163,-427.90625485,0.00010349,2]
[347631529,1735986642171,-232.4571,0.00010387,2]
[347631530,1735986642181,-2007.708,0.00010397,2]
[347631531,1735986642190,-1265.014,0.00010397,2]
[347631532,1735986642200,-918.0,0.00010397,2]
[347631533,1735986642209,-3781.208,0.00010397,2]
[347631534,1735986642218,-821.0,0.00010397,2]
[347631535,1735986642228,-537.313,0.00010397,2]
[347631536,1735986642237,-3722.0,0.00010397,2]
[347631537,1735986642246,-1103.0,0.00010397,2]
[347631538,1735986642255,-2015.656,0.00010397,2]
[347631539,1735986642265,-1269.626,0.00010397,2]
[347631540,1735986642278,-3893.0,0.00010397,2]
[347631541,1735986642287,-150.0,0.00010397,2]
[347631542,1735986642296,-151.0,0.00010397,2]
[347631543,1735986642305,-150.0,0.00010404,2]
[347631544,1735986642316,-500.0,0.0001041,2]
[347631545,1735986642325,-646.91,0.00010411,2]
[347631546,1735986642334,-500.0,0.00010447,2]
[347631547,1735986642343,-519.04,0.00010447,2]
[347631548,1735986642354,-1931.12,0.00010447,2]
[347631549,1735986642363,-740.3,0.00010447,2]
[347631550,1735986642373,-382.95242878,0.00010447,2]
[347631551,1735986642382,-447.56291291,0.00010447,2]
[347631552,1735986642391,-500.0,0.00010447,2]
[347631553,1735986642401,-500.0,0.00010447,2]
[347631554,1735986642410,-500.0,0.00010447,2]
[347631555,1735986642419,-150.0,0.00010468,2]
[347631556,1735986642429,-29999.99,0.00010475,2]
[347631557,1735986642440,-1126.81,0.00010475,2]
[347631558,1735986642450,-15136.38,0.00010475,2]
[347631559,1735986642459,-782.6720213,0.000105,2]
[347631560,1735986642468,-1057.0,0.00010502,2]
[347631561,1735986642477,-427.90625485,0.00010519,2]
[347631562,1735986642487,-500.0,0.00010527,2]
[347631563,1735986642496,-500.0,0.00010527,2]
[347631564,1735986642505,-590.04,0.00010527,2]
[347631565,1735986642515,-500.0,0.00010527,2]
[347631566,1735986642524,-406.58,0.00010527,2]
[347631567,1735986642533,-500.0,0.00010527,2]
[347631568,1735986642543,-500.0,0.00010527,2]
[347631569,1735986642552,-500.0,0.00010527,2]
[347631570,1735986642561,-500.0,0.00010527,2]
[347631571,1735986642570,-1108.79,0.00010527,2]
[347631572,1735986642580,-210.27,0.00010527,2]
[347631573,1735986642590,-151.0,0.00010527,2]
[347631574,1735986642599,-500.0,0.00010527,2]
[347631575,1735986642608,-299.95,0.00010527,2]
[347631576,1735986642618,-2025.25,0.00010527,2]
[347631577,1735986642627,-1143.12,0.00010527,2]
[347631578,1735986642637,-500.0,0.00010527,2]
[347631579,1735986642646,-1486.73,0.00010527,2]
[347631580,1735986642655,-500.0,0.00010527,2]
[347631581,1735986642664,-752.17,0.00010527,2]
[347631582,1735986642674,-500.0,0.00010527,2]
[347631583,1735986642683,-500.0,0.00010527,2]
[347631584,1735986642692,-1853.35,0.00010527,2]
[347631585,1735986642701,-500.0,0.00010527,2]
[347631586,1735986642711,-500.0,0.00010527,2]
[347631587,1735986642721,-223.06,0.00010527,2]
[347631588,1735986642731,-870.72,0.00010527,2]
[347631590,1735986642740,-500.0,0.00010527,2]
[347631591,1735986642749,-500.0,0.00010527,2]
[347631592,1735986642758,-646.08,0.00010527,2]
[347631593,1735986642768,-2647.23,0.00010527,2]
[347631594,1735986642777,-500.0,0.00010527,2]
[347631595,1735986642786,-500.0,0.00010527,2]
[347631596,1735986642795,-745.44,0.00010527,2]
[347631597,1735986642804,-278.47,0.00010527,2]
[347631599,1735986642814,-500.0,0.00010527,2]
[347631601,1735986642823,-696.82,0.00010527,2]
[347631602,1735986642832,-500.0,0.00010527,2]
[347631603,1735986642841,-500.0,0.00010527,2]
[347631604,1735986642850,-642.98,0.00010527,2]
[347631605,1735986642859,-648.05,0.00010527,2]
[347631606,1735986642869,-527.46,0.00010527,2]
[347631607,1735986642877,-500.0,0.00010527,2]
[347631608,1735986642886,-500.0,0.00010527,2]
[347631609,1735986642895,-500.0,0.00010527,2]
[347631610,1735986642904,-500.0,0.00010527,2]
[347631611,1735986642913,-515.25,0.00010527,2]
[347631612,1735986642922,-192.17,0.00010527,2]
[347631613,1735986642931,-500.0,0.00010527,2]
[347631614,1735986642941,-500.0,0.00010527,2]
[347631615,1735986642950,-701.79,0.00010527,2]
[347631616,1735986642959,-507.5,0.00010527,2]
[347631617,1735986642968,-500.0,0.00010527,2]
[347631618,1735986642977,-500.0,0.00010527,2]
[347631619,1735986642987,-540.19,0.00010527,2]
[347631620,1735986642996,-343.13,0.00010527,2]
[347631621,1735986643005,-500.0,0.00010527,2]
[347631622,1735986643014,-500.0,0.00010527,2]
[347631623,1735986643023,-374.9,0.00010527,2]
[347631624,1735986643032,-258.52,0.00010527,2]
[347631625,1735986643041,-500.0,0.00010527,2]
[347631626,1735986643051,-591.21,0.00010527,2]
[347631627,1735986643060,-500.0,0.00010527,2]
[347631628,1735986643069,-500.0,0.00010527,2]
[347631629,1735986643078,-500.0,0.00010527,2]
[347631630,1735986643086,-500.0,0.00010527,2]
[347631631,1735986643095,-857.36,0.00010527,2]
[347631632,1735986643104,-689.37,0.00010527,2]
[347631633,1735986643113,-500.0,0.00010527,2]
[347631634,1735986643123,-500.0,0.00010527,2]
[347631635,1735986643133,-500.0,0.00010527,2]
[347631636,1735986643142,-626.7,0.00010527,2]
[347631637,1735986643151,-382.75111003,0.00010527,2]
[347631638,1735986643160,-336.94129942,0.00010527,2]
[347631639,1735986643320,-605.2,0.00010527,2]
[347631640,1735986643329,-500.0,0.00010527,2]
[347631641,1735986643338,-833.96,0.00010527,2]
[347631642,1735986643348,-150.0,0.0001054,2]
[347631643,1735986643357,-500.0,0.00010543,2]
[347631644,1735986643366,-500.0,0.00010544,2]
[347631645,1735986643375,-169.4,0.00010544,2]
[347631646,1735986643384,-500.0,0.00010544,2]
[347631647,1735986643393,-500.0,0.00010544,2]
[347631648,1735986643402,-500.0,0.00010544,2]
[347631649,1735986643411,-500.0,0.00010544,2]
[347631650,1735986643419,-500.0,0.00010547,2]
[347631651,1735986643428,-150.0,0.00010578,2]
[347631652,1735986643438,-150.0,0.00010578,2]
[347631653,1735986643447,-150.0,0.00010581,2]
[347631654,1735986643457,-500.0,0.00010684,2]
[347631655,1735986643466,-500.0,0.00010721,2]
[347631656,1735986643476,-519.04,0.00010721,2]
[347631657,1735986643486,-1931.12,0.00010721,2]
[347631658,1735986643495,-740.3,0.00010721,2]
[347631660,1735986643505,-500.0,0.00010721,2]
[347631661,1735986643514,-500.0,0.00010721,2]
[347631663,1735986643523,-500.0,0.00010721,2]
[347631664,1735986643531,-427.90625485,0.00010726,2]
[347631665,1735986643540,-150.0,0.00010735,2]
[347631666,1735986643549,-1500.0,0.00010774,2]
[347631667,1735986643558,-150.0,0.00010774,2]
[347631668,1735986643568,-1000.0,0.00010776,2]
[347631669,1735986643578,-150.0,0.00010792,2]
[347631671,1735986643587,-982.08526114,0.000108,2]
[347631673,1735986643597,-500.0,0.00010801,2]
[347631675,1735986643606,-500.0,0.00010801,2]
[347631677,1735986643615,-590.04,0.00010801,2]
[347631679,1735986643624,-500.0,0.00010801,2]
[347631680,1735986643634,-500.0,0.00010801,2]
[347631682,1735986643643,-306.17311564,0.00010801,2]
[347631684,1735986643653,-523.4,0.00010801,2]
[347631686,1735986643662,-500.0,0.00010801,2]
[347631688,1735986643672,-1108.79,0.00010801,2]
[347631690,1735986643682,-243.096999,0.00010801,2]
[347631692,1735986643692,-500.0,0.00010801,2]
[347631694,1735986643701,-2025.25,0.00010801,2]
[347631695,1735986643711,-1143.12,0.00010801,2]
[347631696,1735986643721,-500.0,0.00010801,2]
[347631697,1735986643731,-500.0,0.00010801,2]
[347631698,1735986643740,-1486.73,0.00010801,2]
[347631699,1735986643750,-752.17,0.00010801,2]
[347631700,1735986643760,-500.0,0.00010801,2]
[347631701,1735986643770,-266.75,0.00010801,2]
[347631702,1735986643779,-1853.35,0.00010801,2]
[347631703,1735986643789,-500.0,0.00010801,2]
[347631704,1735986643798,-617.59690516,0.00010801,2]
[347631705,1735986643808,-870.72,0.00010801,2]
[347631706,1735986643818,-500.0,0.00010801,2]
[347631707,1735986643828,-500.0,0.00010801,2]
[347631708,1735986643839,-646.08,0.00010801,2]
[347631709,1735986643849,-2647.23,0.00010801,2]
[347631710,1735986643859,-500.0,0.00010801,2]
[347631711,1735986643868,-385.98,0.00010801,2]
[347631712,1735986643878,-500.0,0.00010801,2]
[347631713,1735986643887,-696.82,0.00010801,2]
[347631714,1735986643897,-500.0,0.00010801,2]
[347631715,1735986643907,-500.0,0.00010801,2]
[347631716,1735986643916,-642.98,0.00010801,2]
[347631717,1735986643926,-648.05,0.00010801,2]
[347631718,1735986643936,-500.0,0.00010801,2]
[347631719,1735986643945,-500.0,0.00010801,2]
[347631720,1735986643954,-500.0,0.00010801,2]
[347631721,1735986643964,-500.0,0.00010801,2]
[347631722,1735986643975,-515.25,0.00010801,2]
[347631723,1735986643984,-262.58,0.00010801,2]
[347631724,1735986643994,-332.77328673,0.00010801,2]
[347631725,1735986644003,-701.79,0.00010801,2]
[347631726,1735986644013,-507.5,0.00010801,2]
[347631727,1735986644022,-500.0,0.00010801,2]
[347631728,1735986644032,-500.0,0.00010801,2]
[347631729,1735986644041,-540.19,0.00010801,2]
[347631730,1735986644051,-500.0,0.00010801,2]
[347631731,1735986644060,-500.0,0.00010801,2]
[347631732,1735986644070,-500.0,0.00010801,2]
[347631733,1735986644080,-591.21,0.00010801,2]
[347631734,1735986644089,-500.0,0.00010801,2]
[347631735,1735986644099,-500.0,0.00010801,2]
[347631736,1735986644109,-500.0,0.00010801,2]
[347631737,1735986644119,-500.0,0.00010801,2]
[347631738,1735986644129,-857.36,0.00010801,2]
[347631739,1735986644138,-689.37,0.00010801,2]
[347631740,1735986644148,-500.0,0.00010801,2]
[347631741,1735986644157,-203.26,0.00010801,2]
[347631742,1735986644167,-500.0,0.00010801,2]
[347631743,1735986644178,-605.2,0.00010801,2]
[347631744,1735986644187,-500.0,0.00010801,2]
[347631745,1735986644196,-833.96,0.00010801,2]
[347631746,1735986644206,-150.0,0.00010814,2]
[347631747,1735986644216,-500.0,0.00010817,2]
[347631748,1735986644225,-151.0,0.00010818,2]
[347631749,1735986644235,-500.0,0.00010818,2]
[347631750,1735986644245,-500.0,0.00010818,2]
[347631751,1735986644255,-500.0,0.00010818,2]
[347631752,1735986644266,-500.0,0.00010818,2]
[347631753,1735986644281,-500.0,0.00010818,2]
[347631754,1735986644293,-500.0,0.00010821,2]
[347631755,1735986644304,-253.38723424,0.000109,2]
[347631756,1735986644315,-253.38723423,0.000109,2]
[347631757,1735986644324,-253.38723423,0.000109,2]
[347631758,1735986644334,-253.38723423,0.000109,2]
[347631759,1735986644343,-253.38723423,0.000109,2]
[347631760,1735986644353,-253.38723423,0.000109,2]
[347631761,1735986644362,-253.38723423,0.000109,2]
[347631762,1735986644372,-267.33977367,0.000109,2]
[347631763,1735986644382,-150.0,0.00010909,2]
[347631764,1735986644391,-500.0,0.00010958,2]
[347631765,1735986644400,-4105.47,0.00010958,2]
[347631766,1735986644410,-4105.47,0.00010958,2]
[347631767,1735986644419,-4105.47,0.00010958,2]
[347631768,1735986644428,-4105.47,0.00010958,2]
[347631769,1735986644438,-4105.47,0.00010958,2]
[347631770,1735986644447,-4105.47,0.00010958,2]
[347631771,1735986644456,-4105.47,0.00010958,2]
[347631772,1735986644465,-4105.47,0.00010958,2]
[347631773,1735986644475,-4105.47,0.00010958,2]
[347631774,1735986644485,-4105.47,0.00010958,2]
[347631775,1735986644494,-4105.47,0.00010958,2]
[347631776,1735986644503,-4105.47,0.00010958,2]
[347631777,1735986644512,-4105.47,0.00010958,2]
[347631778,1735986644521,-4105.47,0.00010958,2]
[347631779,1735986644531,-4105.47,0.00010958,2]
[347631780,1735986644540,-4105.47,0.00010958,2]
[347631781,1735986644549,-4105.47,0.00010958,2]
[347631782,1735986644559,-4105.47,0.00010958,2]
[347631783,1735986644570,-4105.47,0.00010958,2]
[347631784,1735986644581,-4105.47,0.00010958,2]
[347631785,1735986644591,-4105.47,0.00010958,2]
[347631786,1735986644601,-500.0,0.00010959,2]
[347631787,1735986644610,-200.0,0.00010959,2]
[347631788,1735986644620,-151.0,0.00010959,2]
[347631789,1735986644629,-151.0,0.00010959,2]
[347631790,1735986644639,-151.0,0.00010959,2]
[347631791,1735986644649,-151.0,0.00010959,2]
[347631792,1735986644658,-151.0,0.00010959,2]
[347631793,1735986644667,-151.0,0.00010959,2]
[347631794,1735986644676,-151.0,0.00010959,2]
[347631795,1735986644685,-151.0,0.00010959,2]
[347631796,1735986644695,-151.0,0.00010959,2]
[347631797,1735986644704,-189.074078,0.00010959,2]
[347631798,1735986644714,-715.84,0.00010968,2]
[347631799,1735986644723,-394.91623896,0.00010969,2]
[347631800,1735986644732,-394.91623896,0.0001097,2]
[347631801,1735986644742,-3391.51634708,0.0001097,2]
[347631802,1735986644751,-3391.51634708,0.0001097,2]
[347631803,1735986644761,-394.91623896,0.00010971,2]
[347631804,1735986644770,-1500.0,0.00010972,2]
[347631805,1735986644780,-7156.01236758,0.00010973,2]
[347631806,1735986644790,-3391.51634708,0.00010973,2]
[347631807,1735986644799,-7156.01236758,0.00010975,2]
[347631808,1735986644808,-3391.51634708,0.00010977,2]
[347631809,1735986644818,-3391.51634708,0.00010981,2]
[347631810,1735986644828,-150.0,0.00010983,2]
[347631811,1735986644837,-394.91623896,0.00010983,2]
[347631812,1735986644847,-394.91623896,0.00010983,2]
[347631813,1735986644856,-3391.51634708,0.00010985,2]
[347631814,1735986644866,-394.91623896,0.00010986,2]
[347631815,1735986644875,-400.0,0.00010986,2]
[347631816,1735986644885,-7156.01236758,0.00010987,2]
[347631817,1735986644895,-200.0,0.00010987,2]
[347631818,1735986644904,-7156.01236758,0.00010988,2]
[347631819,1735986644914,-7156.01236758,0.00010989,2]
[347631820,1735986644923,-200.0,0.00010989,2]
[347631821,1735986644932,-1543.88623458,0.00010991,2]
[347631822,1735986644942,-1568.21778609,0.00010992,2]
[347631823,1735986644951,-200.0,0.00010992,2]
[347631824,1735986644960,-1099.43580168,0.00010992,2]
[347631825,1735986644970,-5855.24091344,0.00010993,2]
[347631826,1735986644979,-150.0,0.00010993,2]
[347631827,1735986644988,-741.74607808,0.00010993,2]
[347631828,1735986644998,-741.74607808,0.00010994,2]
[347631829,1735986645007,-1568.21778609,0.00010994,2]
[347631830,1735986645017,-12983.83308301,0.00010995,2]
[347631831,1735986645026,-183887.37673569,0.00010995,2]
[347631832,1735986645035,-500.0,0.00010995,2]
[347631833,1735986645045,-519.04,0.00010995,2]
[347631834,1735986645054,-1931.12,0.00010995,2]
[347631835,1735986645064,-740.3,0.00010995,2]
[347631836,1735986645074,-306.96859907,0.00010995,2]
[347631837,1735986645084,-500.0,0.00010995,2]
[347631838,1735986645097,-500.0,0.00010995,2]
[347631839,1735986645106,-2369.49743374,0.00010995,2]
[347631840,1735986645116,-183887.37673569,0.00010995,2]
[347631841,1735986645125,-2369.49743374,0.00010995,2]
[347631842,1735986645136,-94607.76971015,0.00010996,2]
[347631843,1735986645145,-12983.83308301,0.00010997,2]
[347631844,1735986645155,-5855.24091344,0.00010997,2]
[347631845,1735986645164,-5855.24091344,0.00010998,2]
[347631846,1735986645174,-1568.21778609,0.00010998,2]
[347631847,1735986645184,-2369.49743374,0.00010998,2]
[347631848,1735986645194,-5855.24091344,0.00010999,2]
[347631849,1735986645203,-1568.21778609,0.00010999,2]
[347631850,1735986645216,-1580.0,0.00011,2]
[347631851,1735986645227,-100000.0,0.00011,5]
[347631852,1735986645238,-7156.01236758,0.00011,2]
[347631853,1735986645249,-1000.0,0.00011,2]
[347631854,1735986645259,-1000.0,0.00011,2]
[347631855,1735986645272,-815.0,0.00011,3]
[347631856,1735986645283,-1000.0,0.00011,2]
[347631857,1735986645296,-10002.0,0.00011,2]
[347631858,1735986645308,-550.0,0.00011,2]
[347631859,1735986645320,-150.0,0.00011007,2]
[347631860,1735986645329,-279.0,0.0001102,2]
[347631861,1735986645339,-419.0,0.0001102,2]
[347631862,1735986645349,-1059.31193637,0.00011028,2]
[347631863,1735986645359,-427.90625485,0.00011054,2]
[347631864,1735986645369,-500.0,0.00011075,2]
[347631865,1735986645378,-500.0,0.00011075,2]
[347631866,1735986645388,-590.04,0.00011075,2]
[347631867,1735986645398,-254.26559189,0.00011075,2]
[347631868,1735986645407,-500.0,0.00011075,2]
[347631869,1735986645416,-577.89,0.00011075,2]
[347631870,1735986645426,-1108.79,0.00011075,2]
[347631871,1735986645437,-500.0,0.00011075,2]
[347631872,1735986645448,-2025.25,0.00011075,2]
[347631873,1735986645457,-1143.12,0.00011075,2]
[347631874,1735986645467,-500.0,0.00011075,2]
[347631875,1735986645477,-500.0,0.00011075,2]
[347631876,1735986645487,-1486.73,0.00011075,2]
[347631877,1735986645496,-752.17,0.00011075,2]
[347631878,1735986645506,-500.0,0.00011075,2]
[347631879,1735986645516,-1853.35,0.00011075,2]
[347631880,1735986645525,-500.0,0.00011075,2]
[347631881,1735986645535,-870.72,0.00011075,2]
[347631882,1735986645590,-500.0,0.00011075,2]
[347631883,1735986645599,-500.0,0.00011075,2]
[347631884,1735986645608,-646.08,0.00011075,2]
[347631885,1735986645618,-2647.23,0.00011075,2]
[347631886,1735986645628,-500.0,0.00011075,2]
[347631887,1735986645637,-500.0,0.00011075,2]
[347631888,1735986645647,-696.82,0.00011075,2]
[347631889,1735986645656,-515.21,0.00011075,2]
[347631890,1735986645666,-500.0,0.00011075,2]
[347631891,1735986645675,-642.98,0.00011075,2]
[347631892,1735986645684,-648.05,0.00011075,2]
[347631893,1735986645694,-500.0,0.00011075,2]
[347631894,1735986645703,-500.0,0.00011075,2]
[347631895,1735986645713,-500.0,0.00011075,2]
[347631896,1735986645723,-500.0,0.00011075,2]
[347631897,1735986645732,-515.25,0.00011075,2]
[347631898,1735986645741,-701.79,0.00011075,2]
[347631899,1735986645751,-507.5,0.00011075,2]
[347631900,1735986645760,-500.0,0.00011075,2]
[347631901,1735986645769,-500.0,0.00011075,2]
[347631902,1735986645779,-540.19,0.00011075,2]
[347631903,1735986645788,-500.0,0.00011075,2]
[347631904,1735986645798,-500.0,0.00011075,2]
[347631905,1735986645807,-500.0,0.00011075,2]
[347631906,1735986645817,-591.21,0.00011075,2]
[347631907,1735986645827,-500.0,0.00011075,2]
[347631908,1735986645836,-500.0,0.00011075,2]
[347631909,1735986645845,-500.0,0.00011075,2]
[347631910,1735986645855,-500.0,0.00011075,2]
[347631911,1735986645864,-857.36,0.00011075,2]
[347631912,1735986645873,-689.37,0.00011075,2]
[347631913,1735986645883,-500.0,0.00011075,2]
[347631914,1735986645892,-538.25,0.00011075,2]
[347631915,1735986645902,-605.2,0.00011075,2]
[347631916,1735986645911,-500.0,0.00011075,2]
[347631917,1735986645920,-833.96,0.00011075,2]
[347631918,1735986645929,-341.71493999,0.00011081,2]
[347631920,1735986645938,-500.0,0.00011091,2]
[347631922,1735986645947,-500.0,0.00011092,2]
[347631924,1735986645957,-500.0,0.00011092,2]
[347631926,1735986645967,-500.0,0.00011092,2]
[347631928,1735986645976,-500.0,0.00011092,2]
[347631930,1735986645985,-500.0,0.00011092,2]
[347631932,1735986645994,-500.0,0.00011095,2]
[347631934,1735986646004,-1500.0,0.00011108,2]
[347631936,1735986646014,-150.0,0.00011113,2]
[347631938,1735986646023,-178.84,0.00011134,2]
[347631940,1735986646032,-167.47,0.00011156,2]
[347631941,1735986646041,-150.0,0.00011229,2]
[347631942,1735986646050,-500.0,0.00011232,2]
[347631943,1735986646060,-150.0,0.00011245,2]
[347631944,1735986646069,-279.0,0.0001125,2]
[347631945,1735986646079,-419.0,0.0001125,2]
[347631946,1735986646088,-150.0,0.0001125,2]
[347631947,1735986646097,-500.0,0.0001126,2]
[347631948,1735986646107,-500.0,0.0001126,2]
[347631949,1735986646116,-500.0,0.0001126,2]
[347631950,1735986646125,-500.0,0.0001126,2]
[347631951,1735986646134,-500.0,0.0001126,2]
[347631952,1735986646143,-500.0,0.0001126,2]
[347631953,1735986646153,-500.0,0.0001126,2]
[347631954,1735986646162,-500.0,0.0001126,2]
[347631955,1735986646171,-500.0,0.0001126,2]
[347631956,1735986646180,-500.0,0.0001126,2]
[347631957,1735986646189,-500.0,0.0001126,2]
[347631958,1735986646199,-500.0,0.0001126,2]
[347631959,1735986646208,-500.0,0.0001126,2]
[347631960,1735986646218,-500.0,0.0001126,2]
[347631961,1735986646227,-500.0,0.0001126,2]
[347631962,1735986646236,-500.0,0.0001126,2]
[347631963,1735986646246,-500.0,0.0001126,2]
[347631964,1735986646255,-500.0,0.0001126,2]
[347631965,1735986646265,-500.0,0.0001126,2]
[347631966,1735986646278,-500.0,0.0001126,2]
[347631967,1735986646288,-500.0,0.00011269,2]
[347631968,1735986646297,-519.04,0.00011269,2]
[347631969,1735986646307,-1931.12,0.00011269,2]
[347631970,1735986646319,-740.3,0.00011269,2]
[347631971,1735986646328,-500.0,0.00011269,2]
[347631972,1735986646338,-500.0,0.00011269,2]
[347631973,1735986646349,-150.0,0.00011312,2]
[347631974,1735986646358,-1500.0,0.0001132,2]
[347631975,1735986646368,-150.0,0.00011326,2]
[347631976,1735986646377,-150.0,0.0001134,2]
[347631977,1735986646387,-500.0,0.00011349,2]
[347631978,1735986646396,-500.0,0.00011349,2]
[347631979,1735986646405,-590.04,0.00011349,2]
[347631980,1735986646415,-500.0,0.00011349,2]
[347631981,1735986646424,-1108.79,0.00011349,2]
[347631982,1735986646434,-500.0,0.00011349,2]
[347631983,1735986646443,-2025.25,0.00011349,2]
[347631984,1735986646453,-1143.12,0.00011349,2]
[347631985,1735986646462,-500.0,0.00011349,2]
[347631986,1735986646472,-500.0,0.00011349,2]
[347631987,1735986646481,-1486.73,0.00011349,2]
[347631988,1735986646490,-752.17,0.00011349,2]
[347631989,1735986646500,-500.0,0.00011349,2]
[347631990,1735986646509,-1853.35,0.00011349,2]
[347631991,1735986646519,-500.0,0.00011349,2]
[347631992,1735986646528,-870.72,0.00011349,2]
[347631993,1735986646537,-500.0,0.00011349,2]
[347631994,1735986646547,-500.0,0.00011349,2]
[347631995,1735986646556,-646.08,0.00011349,2]
[347631996,1735986646567,-2647.23,0.00011349,2]
[347631997,1735986646576,-354.75764938,0.00011349,2]
[347631998,1735986646586,-429.91,0.00011349,2]
[347631999,1735986646595,-696.82,0.00011349,2]
[347632000,1735986646604,-500.0,0.00011349,2]
[347632001,1735986646614,-642.98,0.00011349,2]
[347632002,1735986646623,-648.05,0.00011349,2]
[347632003,1735986646632,-500.0,0.00011349,2]
[347632004,1735986646641,-500.0,0.00011349,2]
[347632005,1735986646651,-500.0,0.00011349,2]
[347632006,1735986646660,-276.54,0.00011349,2]
[347632007,1735986646669,-515.25,0.00011349,2]
[347632008,1735986646678,-701.79,0.00011349,2]
[347632009,1735986646687,-507.5,0.00011349,2]
[347632010,1735986646697,-500.0,0.00011349,2]
[347632011,1735986646706,-500.0,0.00011349,2]